bitfinex-derivatives/quotes_SOLF0:USTF0_20260118
["timestamp","ask_amount","ask_price","bid_price","bid_amount"]
[1768730756861,5.62824686,142.29,142.23,3.10271556]
[1768730757066,3.32466734,142.3,142.23,3.10271556]
[1768730757267,5.62824686,142.29,142.23,3.10271556]
[1768730757467,3.32466734,142.3,142.23,3.10271556]
[1768730757662,5.6283189,142.29,142.23,3.10271556]
[1768730757863,3.32466734,142.3,142.23,3.10271556]
[1768730758063,8.95298624,142.29,142.23,3.10271556]
[1768730758267,3.32466734,142.29,142.23,3.10271556]
[1768730768979,3.32466734,142.29,142.22,1.77115835]
[1768730769171,3.32466734,142.29,142.22,4.87387391]
[1768730769368,5.09582569,142.29,142.22,4.87387391]
[1768730770278,5.09582569,142.29,142.22,3.10271556]
[1768730774396,3.32466734,142.28,142.22,3.10271556]
[1768730809220,1.77179838,142.29,142.22,3.10271556]
[1768730809426,5.62909353,142.28,142.22,3.10271556]
[1768730809725,3.23698543,142.3,142.22,3.10271556]
[1768730809918,5.60485194,142.29,142.22,3.10271556]
[1768730810116,5.60485194,142.28,142.22,3.10271556]
[1768730810320,3.23698543,142.3,142.22,3.10271556]
[1768730810521,8.84177194,142.29,142.22,3.10271556]
[1768730810825,5.60478651,142.28,142.22,3.10271556]
[1768730811026,3.23698543,142.29,142.22,3.10271556]
[1768730811321,5.60475998,142.28,142.22,3.10271556]
[1768730811526,3.23698543,142.29,142.22,3.10271556]
[1768730811825,5.60469147,142.28,142.22,3.10271556]
[1768730812131,3.23698543,142.29,142.22,3.10271556]
[1768730812324,5.60469409,142.28,142.22,3.10271556]
[1768730812524,3.23698543,142.29,142.22,3.10271556]
[1768730812725,5.60464979,142.28,142.22,3.10271556]
[1768730812927,3.23698543,142.29,142.22,3.10271556]
[1768730813127,5.60464979,142.28,142.22,3.10271556]
[1768730813327,3.23698543,142.29,142.22,3.10271556]
[1768730813528,5.60460244,142.28,142.22,3.10271556]
[1768730813827,3.23698543,142.29,142.22,3.10271556]
[1768730814029,5.60460244,142.28,142.22,3.10271556]
[1768730814229,3.23698543,142.29,142.22,3.10271556]
[1768730814430,5.60455593,142.28,142.22,3.10271556]
[1768730814728,3.23698543,142.29,142.22,3.10271556]
[1768730814919,1.77179838,142.31,142.22,3.10271556]
[1768730815121,3.01123518,142.36,142.27,3.02799942]
[1768730815426,1.77179838,142.35,142.27,3.02799942]
[1768730815620,3.01123518,142.34,142.27,3.02799942]
[1768730815822,3.01123518,142.34,142.28,1.77179838]
[1768730816019,3.01123518,142.34,142.27,3.02799942]
[1768730816519,1.77179838,142.33,142.29,6.3277]
[1768730816723,3.01123518,142.32,142.29,6.3277]
[1768730817018,3.01123518,142.32,142.25,3.02799942]
[1768730817225,3.01123518,142.3,142.23,1.77179838]
[1768730817534,3.01123518,142.3,142.26,6.3291]
[1768730818028,3.01123518,142.3,142.26,2.98528299]
[1768730819226,3.01123518,142.3,142.23,1.77179838]
[1768730820330,3.01123518,142.3,142.25,1.77179838]
[1768730822633,3.01123518,142.3,142.21,1.77179838]
[1768730826836,2.35498293,142.28,142.18,3.02799942]
[1768730827033,1.77179838,142.29,142.2,1.77179838]
[1768730827034,2.35498293,142.26,142.2,1.77179838]
[1768730834043,2.35498293,142.26,142.22,1.77179838]
[1768730834346,2.35498293,142.26,142.18,3.02799942]
[1768730834667,2.35498293,142.26,142.21,1.77179838]
[1768730836041,8.68438293,142.26,142.18,3.02799942]
[1768730836243,2.35498293,142.25,142.2,1.77179838]
[1768730837345,2.35498293,142.25,142.18,3.02799942]
[1768730837647,2.35498293,142.25,142.19,1.77179838]
[1768730838145,2.35498293,142.25,142.17,1.77179838]
[1768730838534,2.35498293,142.25,142.19,1.77179838]
[1768730839233,2.35498293,142.25,142.16,3.02799942]
[1768730839434,2.35498293,142.25,142.19,1.77179838]
[1768730842741,2.35598438,142.29,142.23,1.77179838]
[1768730843149,6.328,142.29,142.23,1.77179838]
[1768730843346,6.328,142.29,142.21,3.03444831]
[1768730843347,2.35598438,142.28,142.21,1.77179838]
[1768730843650,2.35598438,142.28,142.19,3.03444831]
[1768730843850,2.35598438,142.28,142.21,1.77179838]
[1768730845250,2.35598438,142.28,142.19,3.03444831]
[1768730845443,2.35598438,142.28,142.21,1.77179838]
[1768730852861,8.68448438,142.28,142.21,1.77179838]
[1768730853054,2.35598438,142.27,142.21,1.77179838]
[1768730853554,2.35598438,142.27,142.19,3.03444831]
[1768730853754,2.35598438,142.27,142.21,1.77179838]
[1768730859764,2.35598438,142.27,142.2,3.04057414]
[1768730860057,2.35598438,142.27,142.21,1.77179838]
[1768730861362,2.35598438,142.27,142.21,1.77234375]
[1768730864468,7.76883535,142.26,142.2,3.04057414]
[1768730864667,2.355427,142.26,142.21,1.77234375]
[1768730868469,6.3285,142.28,142.15,145.62064435]
[1768730868470,2.355427,142.28,142.23,1.77234375]
[1768730868656,216.59495736,142.3,142.24,3.04057414]
[1768730868657,218.95038436,142.3,142.24,3.04057414]
[1768730868969,5.41926965,142.29,142.24,3.04057414]
[1768730869169,218.95038436,142.3,142.24,3.04057414]
[1768730869170,5.41926965,142.28,142.24,3.04057414]
[1768730869371,218.95038436,142.3,142.24,3.04057414]
[1768730869572,7.7748067,142.29,142.24,3.04057414]
[1768730869771,5.4193797,142.28,142.24,3.04057414]
[1768730869966,2.355427,142.29,142.24,3.04057414]
[1768730870270,5.4169404,142.28,142.24,3.04057414]
[1768730870459,2.355427,142.29,142.24,3.04057414]
[1768730870663,5.41704183,142.28,142.24,3.04057414]
[1768730870865,2.355427,142.29,142.24,3.04057414]
[1768730871071,5.41705848,142.28,142.24,3.04057414]
[1768730871264,2.355427,142.29,142.24,3.04057414]
[1768730871459,5.41718134,142.28,142.24,3.04057414]
[1768730871668,2.355427,142.29,142.24,3.04057414]
[1768730871972,5.41718134,142.28,142.24,3.04057414]
[1768730872175,2.355427,142.29,142.24,3.04057414]
[1768730872370,5.41674942,142.28,142.24,3.04057414]
[1768730872675,2.355427,142.29,142.24,3.04057414]
[1768730898487,1.77234375,142.27,142.19,3.24841671]
[1768730899091,1.77234375,142.27,142.2,1.77234375]
[1768730899293,1.77234375,142.27,142.21,3.24841671]
[1768730901992,274.93555725,142.28,142.21,3.24841671]
[1768730903193,264.48,142.28,142.22,1.77234375]
[1768730903495,264.5,142.29,142.23,3.11727642]
[1768730903689,5.43828584,142.28,142.23,3.11727642]
[1768730903890,264.5,142.29,142.23,3.11727642]
[1768730904093,5.43830255,142.28,142.23,3.11727642]
[1768730904407,264.5,142.29,142.23,3.11727642]
[1768730904600,5.43866795,142.28,142.23,3.11727642]
[1768730904791,264.5,142.29,142.23,3.11727642]
[1768730907289,5.44006387,142.28,142.23,3.11727642]
[1768730907597,264.5,142.29,142.23,3.11727642]
[1768730907798,5.44003045,142.28,142.23,3.11727642]
[1768730908095,264.5,142.29,142.23,3.11727642]
[1768730908298,1.77234375,142.32,142.24,1.77234375]
[1768730908500,1.77234375,142.32,142.25,3.11727642]
[1768730909196,4.12609697,142.32,142.25,3.11727642]
[1768730910803,10.45279697,142.32,142.25,3.11727642]
[1768730914201,4.12609697,142.32,142.25,3.11727642]
[1768730918205,1.77234375,142.3,142.25,3.11727642]
[1768730921305,1.77125285,142.3,142.25,3.11727642]
[1768730939622,1.77125285,142.28,142.25,3.11727642]
[1768730944536,2.35286313,142.31,142.25,3.11727642]
[1768730944727,1.77125285,142.27,142.19,1.77125285]
[1768730945425,3.22824615,142.3,142.19,1.77125285]
[1768730945624,1.77125285,142.28,142.19,1.77125285]
[1768730946936,1.77125285,142.28,142.2,3.1644504]
[1768730947435,1.77125285,142.28,142.21,3.1644504]
[1768730951028,3.22824615,142.3,142.21,3.1644504]
[1768730951227,1.77125285,142.28,142.21,3.1644504]
[1768730955441,3.22824615,142.3,142.21,3.1644504]
[1768730955748,1.77125285,142.29,142.21,3.1644504]
[1768730958443,3.22824615,142.32,142.23,3.1644504]
[1768730958636,1.77125285,142.31,142.23,3.1644504]
[1768730959731,4.999499,142.31,142.23,3.1644504]
[1768730961439,3.22824615,142.31,142.23,3.1644504]
[1768730961641,4.999499,142.31,142.23,3.1644504]
[1768730962245,1.77125285,142.31,142.23,3.1644504]
[1768730962441,1.77125285,142.32,142.24,1.77125285]
[1768730962750,1.77125285,142.32,142.25,3.18533564]
[1768730963047,3.08972078,142.33,142.25,3.18533564]
[1768730963345,4.86097363,142.33,142.25,3.18533564]
[1768730963735,4.86097363,142.33,142.28,6.3274]
[1768730963943,1.77125285,142.33,142.29,3.18533564]
[1768730964149,3.08972078,142.35,142.29,3.18533564]
[1768730964446,1.77125285,142.34,142.29,3.18533564]
[1768730965048,1.77125285,142.34,142.29,9.51253564]
[1768730967553,4.86097363,142.34,142.29,9.51253564]
[1768730975259,1.77125285,142.34,142.29,9.51253564]
[1768730975557,4.86097363,142.36,142.3,3.18533564]
[1768730977865,4.86097363,142.36,142.31,9.34350448]
[1768730978771,3.08972078,142.36,142.31,9.34350448]
[1768730978956,4.86097363,142.36,142.31,9.34350448]
[1768730983272,4.8596196,142.36,142.31,9.34350448]
[1768730986569,4.8596196,142.36,142.32,6.3258]
[1768730987780,1.76989882,142.36,142.32,9.34300448]
[1768730994485,4.95953982,142.36,142.3,9.64389984]
[1768730994681,1.76989882,142.34,142.3,9.64389984]
[1768731007802,4.95953982,142.35,142.3,9.64389984]
[1768731011193,4.95953982,142.35,142.27,1.76989882]
[1768731011194,3.189641,142.34,142.28,3.31739984]
[1768731011399,1.76989882,142.33,142.28,3.31739984]
[1768731011795,1.76989882,142.31,142.26,9.64589984]
[1768731012000,1.76989882,142.3,142.26,9.64589984]
[1768731012696,1.76989882,142.3,142.24,9.64649984]
[1768731015604,4.95953982,142.3,142.24,9.64649984]
[1768731016502,3.189641,142.3,142.24,3.31739984]
[1768731016804,4.95953982,142.32,142.25,3.31739984]
[1768731017306,3.189641,142.31,142.25,3.31739984]
[1768731017900,1.76989882,142.3,142.25,3.31739984]
[1768731023207,3.189641,142.31,142.25,3.31739984]
[1768731023408,4.95953982,142.31,142.25,3.31739984]
[1768731024000,3.189641,142.31,142.25,3.31739984]
[1768731024200,4.95953982,142.31,142.25,3.31739984]
[1768731034418,3.04667912,142.3,142.22,3.26303429]
[1768731036115,3.01559098,142.29,142.22,3.26303429]
[1768731038915,3.01559098,142.29,142.22,5.03293311]
[1768731039414,3.01559098,142.29,142.23,3.3210389]
[1768731048727,4.78713699,142.29,142.23,3.3210389]
[1768731050019,3.01559098,142.28,142.23,3.3210389]
[1768731060539,3.01559098,142.28,142.21,3.21890283]
[1768731060733,1.77154601,142.29,142.21,3.21890283]
[1768731060734,10.5536451,142.27,142.21,3.21890283]
[1768731060939,5.11230345,142.27,142.21,3.21890283]
[1768731063544,3.34075744,142.26,142.21,3.21890283]
[1768731067650,1.77154601,142.25,142.18,3.21890283]
[1768731067850,3.34075744,142.24,142.18,3.21890283]
[1768731095869,5.11230345,142.24,142.18,3.21890283]
[1768731107281,5.11387328,142.24,142.18,3.21890283]
[1768731122896,3.01501899,142.27,142.19,1.77311584]
[1768731123101,5.46164629,142.26,142.2,3.33242929]
[1768731123299,3.01501899,142.27,142.2,3.33242929]
[1768731123499,5.46063042,142.26,142.2,3.33242929]
[1768731123694,3.01501899,142.27,142.2,3.33242929]
[1768731123895,5.44044939,142.26,142.2,3.33242929]
[1768731124095,3.01501899,142.27,142.2,3.33242929]
[1768731124296,3.01501899,142.29,142.22,3.33242929]
[1768731125901,3.01501899,142.29,142.24,6.3294]
[1768731126702,3.01501899,142.29,142.24,9.66182929]
[1768731139914,3.01501899,142.29,142.25,6.329]
[1768731149630,3.33937937,142.32,142.26,6.3285]
[1768731149830,5.11249521,142.32,142.26,6.3285]
[1768731150428,3.33937937,142.31,142.26,6.3285]
[1768731151026,3.33937937,142.33,142.27,9.58301825]
[1768731151230,3.33937937,142.33,142.27,3.25521825]
[1768731152837,3.33937937,142.33,142.28,6.3276]
[1768731156328,4.89052,142.35,142.29,3.2275168]
[1768731156928,3.11740416,142.34,142.29,3.2275168]
[1768731157828,1.77311584,142.35,142.3,3.2275168]
[1768731161632,3.11740416,142.34,142.28,3.2275168]
[1768731162535,3.11740416,142.34,142.28,9.5552168]
[1768731167638,3.11740416,142.36,142.3,3.2275168]
[1768731167843,4.89052,142.36,142.3,3.2275168]
[1768731168545,3.11740416,142.36,142.3,3.2275168]
[1768731168842,4.89052,142.36,142.3,3.2275168]
[1768731169445,4.88771193,142.36,142.3,3.2275168]
[1768731171247,3.11740416,142.35,142.29,6.3272]
[1768731172644,3.11740416,142.35,142.29,9.64175787]
[1768731176450,3.11740416,142.35,142.29,3.31455787]
[1768731182050,3.29781865,142.34,142.29,3.31455787]
[1768731182255,3.29781865,142.34,142.27,3.31455787]
[1768731183749,9.62291865,142.34,142.27,3.31455787]
[1768731183947,3.29781865,142.33,142.27,3.31455787]
[1768731186456,9.62341865,142.33,142.27,3.31455787]
[1768731188957,3.29781865,142.33,142.27,3.31455787]
[1768731232788,5.38020907,142.32,142.27,3.31455787]
[1768731232993,3.29781865,142.33,142.27,3.31455787]
[1768731233193,5.3798968,142.32,142.27,3.31455787]
[1768731233382,3.29781865,142.33,142.27,3.31455787]
[1768731233581,5.37987678,142.32,142.27,3.31455787]
[1768731233786,3.29781865,142.33,142.27,3.31455787]
[1768731233986,5.37999451,142.32,142.27,3.31455787]
[1768731234187,3.29781865,142.33,142.27,3.31455787]
[1768731234392,5.37973967,142.32,142.27,3.31455787]
[1768731234590,3.29781865,142.33,142.27,3.31455787]
[1768731234789,5.37961221,142.32,142.27,3.31455787]
[1768731234995,3.29781865,142.33,142.27,3.31455787]
[1768731235196,5.37961221,142.32,142.27,3.31455787]
[1768731235395,3.29781865,142.33,142.27,3.31455787]
[1768731235698,5.37940162,142.32,142.27,3.31455787]
[1768731235995,3.29781865,142.33,142.27,3.31455787]
[1768731236194,5.37940162,142.32,142.27,3.31455787]
[1768731236389,3.29781865,142.33,142.27,3.31455787]
[1768731236696,5.37923099,142.32,142.27,3.31455787]
[1768731236889,3.29781865,142.33,142.27,3.31455787]
[1768731237085,5.37923099,142.32,142.27,3.31455787]
[1768731237289,3.29781865,142.33,142.27,3.31455787]
[1768731237490,5.37920551,142.32,142.27,3.31455787]
[1768731237690,3.29781865,142.33,142.27,3.31455787]
[1768731237890,5.37908407,142.32,142.27,3.31455787]
[1768731238190,3.29781865,142.33,142.27,3.31455787]
[1768731238391,5.37895518,142.32,142.27,3.31455787]
[1768731238587,3.29781865,142.33,142.27,3.31455787]
[1768731238791,5.37895518,142.32,142.27,3.31455787]
[1768731238995,3.29781865,142.33,142.27,3.31455787]
[1768731239197,5.37884071,142.32,142.27,3.31455787]
[1768731239397,3.29781865,142.33,142.27,3.31455787]
[1768731239600,5.37904904,142.32,142.27,3.31455787]
[1768731239799,3.29781865,142.33,142.27,3.31455787]
[1768731240100,5.37904904,142.32,142.27,3.31455787]
[1768731240302,3.29781865,142.33,142.27,3.31455787]
[1768731240599,5.37884552,142.32,142.27,3.31455787]
[1768731240798,3.29781865,142.33,142.27,3.31455787]
[1768731241003,5.37882553,142.32,142.27,3.31455787]
[1768731241192,3.29781865,142.33,142.27,3.31455787]
[1768731241396,5.378721,142.32,142.27,3.31455787]
[1768731241602,3.29781865,142.33,142.27,3.31455787]
[1768731241804,5.378721,142.32,142.27,3.31455787]
[1768731242104,3.29781865,142.33,142.27,3.31455787]
[1768731242404,5.37862815,142.32,142.27,3.31455787]
[1768731242702,3.29781865,142.33,142.27,3.31455787]
[1768731242905,5.37862815,142.32,142.27,3.31455787]
[1768731243108,3.29781865,142.33,142.27,3.31455787]
[1768731243308,5.37868595,142.32,142.27,3.31455787]
[1768731243509,3.29781865,142.33,142.27,3.31455787]
[1768731243808,5.37854451,142.32,142.27,3.31455787]
[1768731244002,3.29781865,142.33,142.27,3.31455787]
[1768731244203,5.3784691,142.32,142.27,3.31455787]
[1768731244404,3.29781865,142.33,142.27,3.31455787]
[1768731244709,5.3784691,142.32,142.27,3.31455787]
[1768731244902,3.29781865,142.33,142.27,3.31455787]
[1768731245102,5.3784691,142.32,142.27,3.31455787]
[1768731245309,3.29781865,142.33,142.27,3.31455787]
[1768731245509,5.37840112,142.32,142.27,3.31455787]
[1768731245808,3.29781865,142.33,142.27,3.31455787]
[1768731246008,5.37842193,142.32,142.27,3.31455787]
[1768731246208,3.29781865,142.33,142.27,3.31455787]
[1768731246397,5.37837982,142.32,142.27,3.31455787]
[1768731246601,3.29781865,142.33,142.27,3.31455787]
[1768731246898,5.37837982,142.32,142.27,3.31455787]
[1768731247100,3.29781865,142.33,142.27,3.31455787]
[1768731247300,5.37836776,142.32,142.27,3.31455787]
[1768731247499,3.29781865,142.33,142.27,3.31455787]
[1768731247709,5.378013,142.32,142.27,3.31455787]
[1768731247901,3.29781865,142.33,142.27,3.31455787]
[1768731248103,5.378013,142.32,142.27,3.31455787]
[1768731248396,3.29781865,142.33,142.27,3.31455787]
[1768731248603,5.37798138,142.32,142.27,3.31455787]
[1768731248805,3.29781865,142.33,142.27,3.31455787]
[1768731249004,5.37798138,142.32,142.27,3.31455787]
[1768731249197,3.29781865,142.33,142.27,3.31455787]
[1768731249402,5.37799732,142.32,142.27,3.31455787]
[1768731249604,3.29781865,142.33,142.27,3.31455787]
[1768731249809,5.37799745,142.32,142.27,3.31455787]
[1768731250010,3.29781865,142.33,142.27,3.31455787]
[1768731250210,5.37789611,142.32,142.27,3.31455787]
[1768731250415,3.29781865,142.33,142.27,3.31455787]
[1768731250615,5.37789611,142.32,142.27,3.31455787]
[1768731250806,3.29781865,142.33,142.27,3.31455787]
[1768731251005,5.37789607,142.32,142.27,3.31455787]
[1768731251214,3.29781865,142.33,142.27,3.31455787]
[1768731251518,5.3778732,142.32,142.27,3.31455787]
[1768731251813,3.29781865,142.33,142.27,3.31455787]
[1768731252007,5.3778732,142.32,142.27,3.31455787]
[1768731252208,3.29781865,142.33,142.27,3.31455787]
[1768731252405,5.37786082,142.32,142.27,3.31455787]
[1768731252605,3.29781865,142.33,142.27,3.31455787]
[1768731252905,5.37786082,142.32,142.27,3.31455787]
[1768731253105,3.29781865,142.33,142.27,3.31455787]
[1768731253306,5.37817443,142.32,142.27,3.31455787]
[1768731253508,3.29781865,142.33,142.27,3.31455787]
[1768731253710,5.37817443,142.32,142.27,3.31455787]
[1768731253910,3.29781865,142.33,142.27,3.31455787]
[1768731254111,5.37817443,142.32,142.27,3.31455787]
[1768731254311,3.29781865,142.33,142.27,3.31455787]
[1768731254513,5.3781666,142.32,142.27,3.31455787]
[1768731254813,3.29781865,142.33,142.27,3.31455787]
[1768731255009,5.3781666,142.32,142.27,3.31455787]
[1768731255207,3.29781865,142.33,142.27,3.31455787]
[1768731255408,5.37816554,142.32,142.27,3.31455787]
[1768731255609,3.29781865,142.33,142.27,3.31455787]
[1768731255811,5.37816554,142.32,142.27,3.31455787]
[1768731256017,9.62331865,142.33,142.27,3.31455787]
[1768731256205,5.37816872,142.32,142.27,3.31455787]
[1768731256509,9.62331865,142.33,142.27,3.31455787]
[1768731256709,5.37816872,142.32,142.27,3.31455787]
[1768731256910,9.62331865,142.33,142.27,3.31455787]
[1768731257209,5.37810785,142.32,142.27,3.31455787]
[1768731257410,9.62331865,142.33,142.27,3.31455787]
[1768731257614,5.37812695,142.32,142.27,3.31455787]
[1768731257814,9.62331865,142.33,142.27,3.31455787]
[1768731258017,5.37812695,142.32,142.27,3.31455787]
[1768731258321,9.62331865,142.33,142.27,3.31455787]
[1768731258521,5.3781427,142.32,142.27,3.31455787]
[1768731258822,9.62331865,142.33,142.27,3.31455787]
[1768731259012,5.3781427,142.32,142.27,3.31455787]
[1768731259217,9.62331865,142.33,142.27,3.31455787]
[1768731259417,5.37816189,142.32,142.27,3.31455787]
[1768731259618,9.62331865,142.33,142.27,3.31455787]
[1768731259815,5.37485052,142.32,142.27,3.31455787]
[1768731260015,9.62331865,142.33,142.27,3.31455787]
[1768731260216,5.37487321,142.32,142.27,3.31455787]
[1768731260510,9.62331865,142.33,142.27,3.31455787]
[1768731260709,5.37487321,142.32,142.27,3.31455787]
[1768731260923,9.62331865,142.33,142.27,3.31455787]
[1768731261121,5.37487321,142.32,142.27,3.31455787]
[1768731261321,9.62331865,142.33,142.27,3.31455787]
[1768731261622,5.3749596,142.32,142.27,3.31455787]
[1768731261820,9.62331865,142.33,142.27,3.31455787]
[1768731262021,5.37489877,142.32,142.27,3.31455787]
[1768731262320,9.62331865,142.33,142.27,3.31455787]
[1768731262521,5.37493124,142.32,142.27,3.31455787]
[1768731262719,9.62331865,142.33,142.27,3.31455787]
[1768731262921,5.37493124,142.32,142.27,3.31455787]
[1768731263123,9.62331865,142.33,142.27,3.31455787]
[1768731263324,5.37496542,142.32,142.27,3.31455787]
[1768731263526,9.62331865,142.33,142.27,3.31455787]
[1768731263826,5.37496542,142.32,142.27,3.31455787]
[1768731264027,9.62331865,142.33,142.27,3.31455787]
[1768731264227,5.37500357,142.32,142.27,3.31455787]
[1768731264526,9.62331865,142.33,142.27,3.31455787]
[1768731264726,5.37500357,142.32,142.27,3.31455787]
[1768731264922,9.62331865,142.33,142.27,3.31455787]
[1768731265118,5.37512524,142.32,142.27,3.31455787]
[1768731265314,9.62331865,142.33,142.27,3.31455787]
[1768731265523,5.37516755,142.32,142.27,3.31455787]
[1768731265723,9.62331865,142.33,142.27,3.31455787]
[1768731265926,5.37516755,142.32,142.27,3.31455787]
[1768731266122,9.62331865,142.33,142.27,3.31455787]
[1768731266321,5.37521425,142.32,142.27,3.31455787]
[1768731266523,9.62331865,142.33,142.27,3.31455787]
[1768731266720,5.37521425,142.32,142.27,3.31455787]
[1768731266920,9.62331865,142.33,142.27,3.31455787]
[1768731267121,5.37521425,142.32,142.27,3.31455787]
[1768731267322,9.62331865,142.33,142.27,3.31455787]
[1768731267522,5.3752656,142.32,142.27,3.31455787]
[1768731267821,9.62331865,142.33,142.27,3.31455787]
[1768731268021,5.3752656,142.32,142.27,3.31455787]
[1768731268228,9.62331865,142.33,142.27,3.31455787]
[1768731268429,5.37526109,142.32,142.27,3.31455787]
[1768731268624,9.62331865,142.33,142.27,3.31455787]
[1768731268822,5.37532193,142.32,142.27,3.31455787]
[1768731269019,9.62331865,142.33,142.27,3.31455787]
[1768731269222,5.37532279,142.32,142.27,3.31455787]
[1768731269418,9.62331865,142.33,142.27,3.31455787]
[1768731269630,5.37538363,142.32,142.27,3.31455787]
[1768731269832,9.62331865,142.33,142.27,3.31455787]
[1768731270128,5.37538363,142.32,142.27,3.31455787]
[1768731270320,9.62331865,142.33,142.27,3.31455787]
[1768731270521,5.37545118,142.32,142.27,3.31455787]
[1768731270721,9.62331865,142.33,142.27,3.31455787]
[1768731270920,5.3753295,142.32,142.27,3.31455787]
[1768731271130,9.62331865,142.33,142.27,3.31455787]
[1768731271323,5.37544672,142.32,142.27,3.31455787]
[1768731271522,9.62331865,142.33,142.27,3.31455787]
[1768731271723,5.37544672,142.32,142.27,3.31455787]
[1768731271921,9.62331865,142.33,142.27,3.31455787]
[1768731272126,5.37544672,142.32,142.27,3.31455787]
[1768731272425,9.62331865,142.33,142.27,3.31455787]
[1768731272625,5.37557813,142.32,142.27,3.31455787]
[1768731272828,9.62331865,142.33,142.27,3.31455787]
[1768731273028,5.37557813,142.32,142.27,3.31455787]
[1768731273228,9.62331865,142.33,142.27,3.31455787]
[1768731273434,5.37573937,142.32,142.27,3.31455787]
[1768731273634,9.62331865,142.33,142.27,3.31455787]
[1768731273834,5.37561801,142.32,142.27,3.31455787]
[1768731274035,9.62331865,142.33,142.27,3.31455787]
[1768731274236,5.37580545,142.32,142.27,3.31455787]
[1768731274435,9.62331865,142.33,142.27,3.31455787]
[1768731274636,5.37580545,142.32,142.27,3.31455787]
[1768731274838,9.62331865,142.33,142.27,3.31455787]
[1768731275035,5.37580545,142.32,142.27,3.31455787]
[1768731275236,9.62331865,142.33,142.27,3.31455787]
[1768731275438,5.37590064,142.32,142.27,3.31455787]
[1768731275637,9.62331865,142.33,142.27,3.31455787]
[1768731275831,5.37590064,142.32,142.27,3.31455787]
[1768731276027,9.62331865,142.33,142.27,3.31455787]
[1768731276232,5.3762142,142.32,142.27,3.31455787]
[1768731276432,9.62331865,142.33,142.27,3.31455787]
[1768731276633,5.3762142,142.32,142.27,3.31455787]
[1768731276828,9.62331865,142.33,142.27,3.31455787]
[1768731277036,5.3761942,142.32,142.27,3.31455787]
[1768731277236,9.62331865,142.33,142.27,3.31455787]
[1768731277436,5.37679497,142.32,142.27,3.31455787]
[1768731277638,9.62331865,142.33,142.27,3.31455787]
[1768731277838,5.37665357,142.32,142.27,3.31455787]
[1768731278039,9.62331865,142.33,142.27,3.31455787]
[1768731278333,5.37680089,142.32,142.27,3.31455787]
[1768731278533,9.62331865,142.33,142.27,3.31455787]
[1768731278747,5.37680089,142.32,142.27,3.31455787]
[1768731278941,9.62331865,142.33,142.27,3.31455787]
[1768731279144,5.37680089,142.32,142.27,3.31455787]
[1768731279343,9.62331865,142.33,142.27,3.31455787]
[1768731279643,5.37681106,142.32,142.27,3.31455787]
[1768731279842,9.62331865,142.33,142.27,3.31455787]
[1768731280050,5.37679781,142.32,142.27,3.31455787]
[1768731280249,9.62331865,142.33,142.27,3.31455787]
[1768731280451,5.37680442,142.32,142.27,3.31455787]
[1768731280646,9.62331865,142.33,142.27,3.31455787]
[1768731280945,5.37698661,142.32,142.27,3.31455787]
[1768731281146,9.62331865,142.33,142.27,3.31455787]
[1768731281447,5.37699336,142.32,142.27,3.31455787]
[1768731281749,9.62331865,142.33,142.27,3.31455787]
[1768731281943,5.37700672,142.32,142.27,3.31455787]
[1768731282144,9.62331865,142.33,142.27,3.31455787]
[1768731282337,5.37803853,142.32,142.27,3.31455787]
[1768731282542,9.62331865,142.33,142.27,3.31455787]
[1768731282739,5.37805787,142.32,142.27,3.31455787]
[1768731282943,9.62331865,142.33,142.27,3.31455787]
[1768731283143,5.37816592,142.32,142.27,3.31455787]
[1768731283348,9.62331865,142.33,142.27,3.31455787]
[1768731283549,5.37818631,142.32,142.27,3.31455787]
[1768731283754,9.62331865,142.33,142.27,3.31455787]
[1768731284057,5.37818631,142.32,142.27,3.31455787]
[1768731284352,9.62331865,142.33,142.27,3.31455787]
[1768731284651,5.37832754,142.32,142.27,3.31455787]
[1768731284853,9.62331865,142.33,142.27,3.31455787]
[1768731285053,5.37941435,142.32,142.27,3.31455787]
[1768731285351,9.62331865,142.33,142.27,3.31455787]
[1768731285542,5.37946933,142.32,142.27,3.31455787]
[1768731285741,9.62331865,142.33,142.27,3.31455787]
[1768731285943,5.37946933,142.32,142.27,3.31455787]
[1768731286153,9.62331865,142.33,142.27,3.31455787]
[1768731286356,5.37948488,142.32,142.27,3.31455787]
[1768731286548,9.62331865,142.33,142.27,3.31455787]
[1768731286745,5.37809963,142.32,142.27,3.31455787]
[1768731286946,9.62331865,142.33,142.27,3.31455787]
[1768731287150,5.37698581,142.32,142.27,3.31455787]
[1768731287351,9.62331865,142.33,142.27,3.31455787]
[1768731287652,5.37700339,142.32,142.27,3.31455787]
[1768731287853,9.62331865,142.33,142.27,3.31455787]
[1768731288053,5.37700939,142.32,142.27,3.31455787]
[1768731288249,9.62331865,142.33,142.27,3.31455787]
[1768731288448,5.37737064,142.32,142.27,3.31455787]
[1768731288644,9.62331865,142.33,142.27,3.31455787]
[1768731288850,5.37775797,142.32,142.27,3.31455787]
[1768731289047,9.62331865,142.33,142.27,3.31455787]
[1768731289348,5.37803539,142.32,142.27,3.31455787]
[1768731289548,9.62331865,142.33,142.27,3.31455787]
[1768731289749,11.70404139,142.32,142.27,3.31455787]
[1768731290048,6.326,142.32,142.27,3.31455787]